fUSD/lending_fUSD_20260417
["ID","MTS","AMOUNT","RATE_DAILY","PERIOD"]
[420656169,1776435049259,-154.0,0.000103,2]
[420656170,1776435049268,-154.0,0.000103,2]
[420656171,1776435049276,-2351477.75338953,0.000103,2]
[420656172,1776435049287,-151.0,0.000103,2]
[420656173,1776435049296,-151.0,0.000103,2]
[420656174,1776435049305,-151.0,0.000103,2]
[420656175,1776435049315,-163.837114,0.000103,2]
[420656176,1776435049324,-163.837114,0.000103,2]
[420656177,1776435049334,-163.837114,0.000103,2]
[420656178,1776435049343,-163.837114,0.000103,2]
[420656179,1776435049353,-463.845914,0.000103,2]
[420656180,1776435049362,-463.845914,0.000103,2]
[420656181,1776435049371,-463.845914,0.000103,2]
[420656182,1776435049380,-463.845914,0.000103,2]
[420656183,1776435049389,-6377.300728,0.000103,2]
[420656184,1776435049398,-6377.300728,0.000103,2]
[420656185,1776435049407,-6377.300728,0.000103,2]
[420656186,1776435049416,-6377.300728,0.000103,2]
[420656187,1776435049426,-151.0,0.000103,2]
[420656188,1776435049435,-204.169656,0.000103,2]
[420656189,1776435049445,-150.0,0.00010329,2]
[420656190,1776435049454,-184.70544537,0.00010339,11]
[420656191,1776435049464,-1000.0,0.00010387,2]
[420656192,1776435049474,-632.90353496,0.00010411,2]
[420656193,1776435049483,-1000.0,0.0001042,2]
[420656194,1776435049493,-152.0,0.00010493,4]
[420656195,1776435049502,-200.0,0.00010548,2]
[420656196,1776435049511,-9409.17,0.0001055,2]
[420656197,1776435049521,-1925.42,0.00010569,2]
[420656198,1776435049532,-1000.0,0.0001058,2]
[420656199,1776435049542,-523.25139582,0.000106,2]
[420656200,1776435049552,-1481.23780761,0.00010623,2]
[420656201,1776435049561,-200.0,0.00010623,2]
[420656202,1776435049571,-201.93286099,0.00010623,2]
[420656203,1776435049580,-150.0,0.00010629,2]
[420656204,1776435049589,-245.52,0.00010661,2]
[420656205,1776435049598,-171.26,0.00010667,2]
[420656206,1776435049608,-151.05674513,0.00010685,2]
[420656207,1776435049617,-500.0,0.00010685,2]
[420656208,1776435049629,-500.0,0.00010685,2]
[420656209,1776435049639,-500.0,0.00010685,2]
[420656210,1776435049648,-500.0,0.00010685,2]
[420656211,1776435049658,-500.0,0.00010685,2]
[420656212,1776435049667,-500.0,0.00010685,2]
[420656213,1776435049677,-500.0,0.00010685,2]
[420656214,1776435049686,-584.10959855,0.00010685,2]
[420656215,1776435049695,-500.0,0.00010685,2]
[420656216,1776435049705,-150.0,0.00010685,2]
[420656217,1776435049714,-526.82804619,0.00010685,2]
[420656218,1776435049724,-154.44738196,0.00010685,2]
[420656219,1776435049733,-150.0,0.00010685,2]
[420656220,1776435049742,-150.0,0.00010685,2]
[420656221,1776435049752,-150.0,0.00010685,2]
[420656222,1776435049761,-218.56838661,0.00010685,2]
[420656223,1776435049770,-150.0,0.00010685,2]
[420656224,1776435049782,-500.0,0.00010685,2]
[420656225,1776435049792,-500.0,0.00010685,2]
[420656226,1776435049801,-500.0,0.00010685,2]
[420656227,1776435049812,-337.58048183,0.00010685,2]
[420656228,1776435049821,-150.0,0.00010685,2]
[420656229,1776435049831,-260.43784215,0.00010685,2]
[420656230,1776435049843,-500.0,0.00010685,2]
[420656231,1776435049853,-500.0,0.00010685,2]
[420656232,1776435049864,-223.25615635,0.00010685,2]
[420656233,1776435049873,-500.0,0.00010685,2]
[420656234,1776435049882,-500.0,0.00010685,2]
[420656235,1776435049893,-500.0,0.00010685,2]
[420656236,1776435049904,-150.0,0.00010685,2]
[420656237,1776435049914,-500.0,0.00010685,2]
[420656238,1776435049924,-150.0,0.00010685,2]
[420656239,1776435049934,-627.74515072,0.00010685,2]
[420656240,1776435049944,-150.0,0.00010685,2]
[420656241,1776435049954,-256.66651478,0.00010685,2]
[420656242,1776435049963,-111287.12486772,0.000107,2]
[420656243,1776435049972,-259.03222711,0.000107,2]
[420656244,1776435049982,-1000.0,0.00010738,2]
[420656245,1776435049992,-152.0,0.00010761,5]
[420656246,1776435050001,-3896.24628025,0.000109,2]
[420656247,1776435050010,-3896.24628024,0.000109,2]
[420656248,1776435050022,-163.94,0.00010906,2]
[420656249,1776435050034,-150.0,0.00010929,2]
[420656250,1776435050043,-284.0,0.00010958,2]
[420656251,1776435050052,-500.0,0.00010959,2]
[420656252,1776435050062,-150.0,0.00010959,2]
[420656253,1776435050072,-151.0,0.00010959,2]
[420656254,1776435050083,-150.0,0.00010959,2]
[420656255,1776435050092,-151.0,0.00010959,2]
[420656256,1776435050101,-160.31966947,0.00010959,2]
[420656257,1776435050111,-150.0,0.00010959,2]
[420656258,1776435050120,-2627.0,0.00010967,5]
[420656259,1776435050130,-500.0,0.00010967,2]
[420656260,1776435050140,-500.0,0.00010967,2]
[420656261,1776435050150,-500.0,0.00010967,2]
[420656262,1776435050159,-500.0,0.00010967,2]
[420656263,1776435050169,-500.0,0.00010967,2]
[420656264,1776435050179,-909.0,0.00010967,2]
[420656265,1776435050189,-500.0,0.00010967,2]
[420656266,1776435050198,-500.0,0.00010967,2]
[420656267,1776435050208,-500.0,0.00010967,2]
[420656268,1776435050218,-500.0,0.00010967,2]
[420656269,1776435050227,-500.0,0.00010967,2]
[420656270,1776435050237,-500.0,0.00010967,2]
[420656271,1776435050247,-500.0,0.00010967,2]
[420656272,1776435050256,-500.0,0.00010967,2]
[420656273,1776435050265,-500.0,0.00010967,2]
[420656274,1776435050275,-500.0,0.00010967,2]
[420656275,1776435050285,-500.0,0.00010967,2]
[420656276,1776435050295,-500.0,0.00010967,2]
[420656277,1776435050305,-500.0,0.00010967,2]
[420656278,1776435050314,-500.0,0.00010967,2]
[420656279,1776435050324,-500.0,0.00010967,2]
[420656280,1776435050334,-500.0,0.00010967,2]
[420656281,1776435050343,-500.0,0.00010967,2]
[420656282,1776435050353,-500.0,0.00010967,2]
[420656283,1776435050364,-500.0,0.00010967,2]
[420656284,1776435050373,-500.0,0.00010967,2]
[420656285,1776435050382,-500.0,0.00010967,2]
[420656286,1776435050392,-1000.0,0.00010972,2]
[420656287,1776435050402,-2000.0,0.00010978,2]
[420656288,1776435050411,-200.0,0.00010978,2]
[420656289,1776435050421,-277.17,0.00010989,2]
[420656290,1776435050431,-151.0,0.00011022,2]
[420656291,1776435050441,-154.7246712,0.00011022,2]
[420656292,1776435050451,-152.0,0.0001103,6]
[420656293,1776435050461,-230.0,0.00011038,3]
[420656294,1776435050471,-2225.48902098,0.0001105,2]
[420656295,1776435050481,-10055.76954391,0.0001105,2]
[420656296,1776435050490,-200.0,0.00011096,2]
[420656297,1776435050500,-300.0,0.00011098,2]
[420656298,1776435050510,-5170.77125448,0.00011099,2]
[420656299,1776435050519,-5170.77125446,0.00011099,2]
[420656300,1776435050531,-5170.77125446,0.00011099,2]
[420656301,1776435050541,-5170.77125446,0.00011099,2]
[420656302,1776435050550,-5170.77125446,0.00011099,2]
[420656303,1776435050560,-5170.77125446,0.00011099,2]
[420656304,1776435050570,-5170.77125446,0.00011099,2]
[420656305,1776435050580,-5170.77125446,0.00011099,2]
[420656306,1776435050590,-29910.22214293,0.00011099,2]
[420656307,1776435050600,-29910.22214293,0.00011099,2]
[420656308,1776435050610,-29910.22214293,0.00011099,2]
[420656309,1776435050619,-29910.22214293,0.00011099,2]
[420656310,1776435050629,-29910.22214293,0.00011099,2]
[420656311,1776435050638,-29910.22214293,0.00011099,2]
[420656312,1776435050648,-29910.22214293,0.00011099,2]
[420656313,1776435050658,-29910.22214293,0.00011099,2]
[420656314,1776435050670,-784.87709373,0.000111,2]
[420656315,1776435050680,-226.29,0.0001114,2]
[420656316,1776435050692,-599.60298507,0.0001117,2]
[420656317,1776435050702,-670.58624095,0.0001117,2]
[420656318,1776435050712,-1536.04360649,0.00011171,2]
[420656319,1776435050722,-200.0,0.00011171,2]
[420656320,1776435050731,-209.40437684,0.00011171,2]
[420656321,1776435050740,-1000.0,0.00011216,2]
[420656322,1776435050750,-1116.0,0.00011223,2]
[420656323,1776435050759,-150.0,0.00011229,2]
[420656324,1776435050769,-184.21,0.0001124,2]
[420656325,1776435050782,-216.27,0.0001124,2]
[420656326,1776435050792,-152.0,0.00011298,7]
[420656327,1776435050802,-2000.0,0.00011301,2]
[420656328,1776435050811,-29910.22214293,0.00011322,2]
[420656329,1776435050821,-5170.77125446,0.00011322,2]
[420656330,1776435050831,-184.70544537,0.00011357,14]
[420656331,1776435050840,-319.643968,0.000114,2]
[420656332,1776435050850,-3700.0,0.000114,4]
[420656333,1776435050859,-1142.13920846,0.00011426,2]
[420656334,1776435050869,-150.0,0.00011431,2]
[420656335,1776435050881,-3700.0,0.000115,4]
[420656336,1776435050890,-10623.94,0.00011507,2]
[420656337,1776435050902,-6543.68,0.00011507,2]
[420656338,1776435050912,-150.0,0.00011529,2]
[420656339,1776435050922,-152.0,0.00011566,8]
[420656340,1776435050933,-151.7777588,0.0001157,2]
[420656341,1776435050944,-3700.0,0.000116,4]
[420656342,1776435050954,-177.673315,0.0001165,4]
[420656343,1776435050964,-163.94,0.00011685,2]
[420656344,1776435050973,-3700.0,0.000117,4]
[420656345,1776435050983,-1592.87721993,0.00011719,2]
[420656346,1776435050995,-200.0,0.00011719,2]
[420656347,1776435051004,-217.15233878,0.00011719,2]
[420656348,1776435051015,-2979.75906903,0.0001176,2]
[420656349,1776435051026,-284.0,0.0001178,2]
[420656350,1776435051038,-4298.0,0.000118,4]
[420656351,1776435051047,-1116.0,0.00011813,2]
[420656352,1776435051057,-5863.16808616,0.0001182,2]
[420656353,1776435051066,-150.0,0.00011829,2]
[420656354,1776435051077,-152.0,0.00011835,9]
[420656355,1776435051087,-175.2082,0.0001185,2]
[420656356,1776435051096,-150.0,0.00011859,2]
[420656357,1776435051106,-2000.0,0.0001188,2]
[420656358,1776435051116,-2000.0,0.0001188,2]
[420656359,1776435051124,-2000.0,0.0001188,2]
[420656360,1776435051134,-2000.0,0.0001188,2]
[420656361,1776435051144,-230.0,0.00011881,3]
[420656362,1776435051153,-171.29,0.000119,2]
[420656363,1776435051162,-470.19291728,0.000119,2]
[420656364,1776435051172,-29910.22214293,0.000119,2]
[420656365,1776435051584,-5170.77125446,0.000119,2]
[420656366,1776435051607,-192.14915577,0.000119,2]
[420656367,1776435051616,-2225.48902098,0.000119,2]
[420656368,1776435051625,-10055.76954391,0.000119,2]
[420656369,1776435051634,-200.0,0.00011903,2]
[420656370,1776435051644,-150.0,0.0001197,2]
[420656371,1776435051653,-500.0,0.00011972,2]
[420656372,1776435051663,-500.0,0.00011972,2]
[420656373,1776435051672,-500.0,0.00011972,2]
[420656374,1776435051681,-500.0,0.00011972,2]
[420656375,1776435051691,-500.0,0.00011972,2]
[420656376,1776435051701,-500.0,0.00011972,2]
[420656377,1776435051710,-500.0,0.00011972,2]
[420656378,1776435051720,-500.0,0.00011972,2]
[420656379,1776435051729,-500.0,0.00011972,2]
[420656380,1776435051739,-500.0,0.00011972,2]
[420656381,1776435051748,-500.0,0.00011972,2]
[420656382,1776435051757,-500.0,0.00011972,2]
[420656383,1776435051767,-500.0,0.00011972,2]
[420656384,1776435051776,-500.0,0.00011972,2]
[420656385,1776435051787,-500.0,0.00011972,2]
[420656386,1776435051796,-500.0,0.00011972,2]
[420656387,1776435051806,-500.0,0.00011972,2]
[420656388,1776435051815,-500.0,0.00011972,2]
[420656389,1776435051824,-500.0,0.00011972,2]
[420656390,1776435051833,-500.0,0.00011972,2]
[420656391,1776435051842,-500.0,0.00011972,2]
[420656392,1776435051851,-500.0,0.00011972,2]
[420656393,1776435051861,-500.0,0.00011972,2]
[420656394,1776435051870,-500.0,0.00011972,2]
[420656395,1776435051881,-500.0,0.00011972,2]
[420656396,1776435051890,-500.0,0.00011972,2]
[420656397,1776435051899,-500.0,0.00011972,2]
[420656398,1776435051909,-500.0,0.00011972,2]
[420656399,1776435051920,-500.0,0.00011972,2]
[420656400,1776435051929,-500.0,0.00011972,2]
[420656401,1776435051938,-500.0,0.00011972,2]
[420656402,1776435051949,-500.0,0.00011972,2]
[420656403,1776435051959,-500.0,0.00011972,2]
[420656404,1776435051968,-500.0,0.00011972,2]
[420656405,1776435051979,-500.0,0.00011972,2]
[420656406,1776435051990,-500.0,0.00011972,2]
[420656407,1776435051999,-500.0,0.00011972,2]
[420656408,1776435052008,-500.0,0.00011972,2]
[420656409,1776435052017,-500.0,0.00011972,2]
[420656410,1776435052027,-500.0,0.00011972,2]
[420656411,1776435052038,-500.0,0.00011972,2]
[420656412,1776435052047,-500.0,0.00011972,2]
[420656413,1776435052057,-500.0,0.00011972,2]
[420656414,1776435052067,-500.0,0.00011972,2]
[420656415,1776435052076,-500.0,0.00011972,2]
[420656416,1776435052086,-500.0,0.00011972,2]
[420656417,1776435052095,-500.0,0.00011972,2]
[420656418,1776435052104,-500.0,0.00011972,2]
[420656419,1776435052114,-500.0,0.00011972,2]
[420656420,1776435052124,-500.0,0.00011972,2]
[420656421,1776435052133,-500.0,0.00011972,2]
[420656422,1776435052143,-500.0,0.00011972,2]
[420656423,1776435052152,-500.0,0.00011972,2]
[420656424,1776435052162,-500.0,0.00011972,2]
[420656425,1776435052172,-500.0,0.00011972,2]
[420656426,1776435052182,-500.0,0.00011972,2]
[420656427,1776435052191,-500.0,0.00011972,2]
[420656428,1776435052201,-500.0,0.00011972,2]
[420656429,1776435052211,-500.0,0.00011972,2]
[420656430,1776435052221,-500.0,0.00011972,2]
[420656431,1776435052230,-500.0,0.00011972,2]
[420656432,1776435052240,-500.0,0.00011972,2]
[420656433,1776435052249,-500.0,0.00011972,2]
[420656434,1776435052259,-500.0,0.00011972,2]
[420656435,1776435052268,-500.0,0.00011972,2]
[420656436,1776435052278,-500.0,0.00011972,2]
[420656437,1776435052288,-500.0,0.00011972,2]
[420656438,1776435052297,-500.0,0.00011972,2]
[420656439,1776435052306,-500.0,0.00011972,2]
[420656440,1776435052318,-500.0,0.00011972,2]
[420656441,1776435052327,-500.0,0.00011972,2]
[420656442,1776435052336,-500.0,0.00011972,2]
[420656443,1776435052347,-500.0,0.00011972,2]
[420656444,1776435052356,-500.0,0.00011972,2]
[420656445,1776435052366,-500.0,0.00011972,2]
[420656446,1776435052376,-500.0,0.00011972,2]
[420656447,1776435052386,-500.0,0.00011972,2]
[420656448,1776435052396,-500.0,0.00011972,2]
[420656449,1776435052405,-500.0,0.00011972,2]
[420656450,1776435052415,-500.0,0.00011972,2]
[420656451,1776435052424,-500.0,0.00011972,2]
[420656452,1776435052434,-500.0,0.00011972,2]
[420656453,1776435052443,-500.0,0.00011972,2]
[420656454,1776435052452,-500.0,0.00011972,2]
[420656455,1776435052462,-500.0,0.00011972,2]
[420656456,1776435052472,-908.0,0.00011972,2]
[420656457,1776435052481,-500.0,0.00011972,2]
[420656458,1776435052491,-890.0,0.00011972,2]
[420656459,1776435052500,-1230.0,0.00011973,2]
[420656460,1776435052510,-150.0,0.00011988,2]
[420656461,1776435052520,-1103.85013062,0.00011999,3]
[420656462,1776435052531,-1509870.70192705,0.00012,2]
[420656463,1776435052584,-151.0,0.0001,2]
[420656464,1776435052594,-7570.0,0.00012,2]
[420656465,1776435055497,-369.90430037,0.00012,2]
[420656466,1776435055519,-967.8,0.00012,2]
[420656467,1776435057597,-150.0,6.951e-05,2]
[420656468,1776435057609,-2473.0,9.625e-05,2]
[420656469,1776435057623,-151.0,0.0001,2]
[420656470,1776435057635,-458.13155779,0.0001,2]
[420656471,1776435057645,-512.67040773,0.0001,2]
[420656472,1776435057655,-512.67040773,0.0001029,2]
[420656473,1776435057664,-58280.21811456,0.00012,2]
[420656474,1776435058234,-296.00616622,8.855e-05,2]
[420656475,1776435058253,-349.51,8.855e-05,2]
[420656476,1776435058285,-20.90880669,8.855e-05,2]
[420656477,1776435058320,-4320.29409506,8.855e-05,2]
[420656478,1776435058368,-308.484,8.855e-05,2]
[420656479,1776435058380,-553.523,8.855e-05,2]
[420656480,1776435058409,-400.0,7.053e-05,2]
[420656481,1776435058419,-649.44776303,8.855e-05,2]
[420656482,1776435058429,-151.0,9.744e-05,2]
[420656483,1776435058439,-151.44,9.744e-05,2]
[420656484,1776435058448,-475.86568261,0.0001,2]
[420656485,1776435058458,-151.0,0.0001,2]
[420656486,1776435058469,-3896.24628024,0.000109,2]
[420656487,1776435058479,-512.67040773,0.0001199,2]
[420656488,1776435058488,-4128.62643269,0.00012,2]
[420656489,1776435058500,-3373.49917427,0.00012,2]
[420656490,1776435058511,-1141.6,0.00012,2]
[420656491,1776435058523,-1025.25194819,0.00012,2]
[420656492,1776435058535,-836574.94834081,0.00012,2]
[420656493,1776435058547,-1452.01192522,0.00012,2]
[420656495,1776435111069,150.0,0.00015655,120]
[420656496,1776435144414,204.86165558,6.799e-05,2]
[420656498,1776435170004,9795.14834442,7.043e-05,2]
[420656530,1776435721872,-204.85165558,7.043e-05,2]
[420656531,1776435721900,-243.0,7.043e-05,2]
[420656532,1776435721934,-1311.0,7.043e-05,3]
[420656533,1776435721963,-163.0,7.043e-05,3]
[420656535,1776435727320,1245.0,7.043e-05,3]
[420656538,1776435736971,251.0,7.747e-05,2]
[420656539,1776435738724,163.0,7.043e-05,3]
[420656545,1776435788831,1183.0,7.043e-05,3]
[420656547,1776435798452,-250.0,7.789e-05,2]
[420656549,1776435800024,163.0,7.043e-05,3]
[420656552,1776435824166,376.9103406,0.000165,120]
[420656555,1776435849490,1124.0,7.043e-05,3]
[420656559,1776435869187,163.0,7.043e-05,3]
[420656568,1776435916545,173.0,7.043e-05,3]
[420656577,1776435965871,1068.0,7.043e-05,3]
[420656583,1776436027375,1014.0,7.043e-05,3]
[420656584,1776436028115,1600.0,7.492e-05,2]
[420656585,1776436044244,500.0,7.73e-05,2]
[420656586,1776436050679,190.10483936,7.626e-05,2]
[420656588,1776436051701,150.0,7.626e-05,2]
[420656590,1776436087591,4017.90516064,7.458e-05,2]
[420656591,1776436087619,10000.01,7.458e-05,2]
[420656592,1776436087642,10000.01,7.458e-05,2]
[420656593,1776436087666,10000.01,7.458e-05,2]
[420656594,1776436087690,10000.01,7.458e-05,2]
[420656595,1776436087714,10000.01,7.458e-05,2]
[420656596,1776436087738,8334.16483936,7.458e-05,2]
[420656597,1776436091217,1005.0,7.043e-05,3]
[420656600,1776436146711,153.0,7.043e-05,3]
[420656601,1776436149770,162.0,7.043e-05,3]
[420656605,1776436209289,345.84516064,7.73e-05,2]
[420656606,1776436209314,154.15483936,7.73e-05,2]
[420656607,1776436209612,954.0,7.043e-05,3]
[420656608,1776436209957,250.0,7.78e-05,2]
[420656630,1776436233855,-954.0,7.83e-05,3]
[420656631,1776436233866,-150.87341297,7.9e-05,2]
[420656632,1776436233883,-926.38734338,7.9e-05,2]
[420656634,1776436233894,-5575.244449,7.945e-05,2]
[420656635,1776436233903,-578.20924308,7.975e-05,2]
[420656636,1776436233913,-1395.57788125,7.988e-05,2]
[420656637,1776436233926,-1824.59091875,7.988e-05,2]
[420656638,1776436233936,-150.0,8.071e-05,2]
[420656639,1776436233946,-150.0,8.088e-05,2]
[420656640,1776436233956,-150.0,8.088e-05,2]
[420656641,1776436233966,-150.0,8.088e-05,2]
[420656642,1776436233976,-150.0,8.088e-05,2]
[420656643,1776436233985,-150.0,8.088e-05,2]
[420656644,1776436233995,-150.0,8.088e-05,2]
[420656645,1776436234005,-150.0,8.088e-05,2]
[420656646,1776436234017,-150.0,8.088e-05,2]
[420656647,1776436234027,-150.0,8.088e-05,2]
[420656648,1776436234038,-150.0,8.088e-05,2]
[420656649,1776436234047,-533.89,8.088e-05,2]
[420656650,1776436234057,-150.0,8.13e-05,2]
[420656651,1776436234067,-150.0,8.133e-05,2]
[420656652,1776436234077,-150.0,8.141e-05,2]
[420656653,1776436234087,-150.0,8.148e-05,2]
[420656654,1776436234097,-150.0,8.157e-05,2]
[420656655,1776436234107,-150.0,8.163e-05,2]
[420656656,1776436234118,-150.0,8.163e-05,2]
[420656657,1776436234128,-150.0,8.173e-05,2]
[420656658,1776436234137,-150.0,8.178e-05,2]
[420656659,1776436234147,-2720.351333,8.178e-05,2]
[420656660,1776436234156,-150.0,8.193e-05,2]
[420656661,1776436234166,-124.92774825,8.198e-05,2]
[420656662,1776436234178,-76.07225175,8.198e-05,2]
[420656663,1776436234188,-150.0,8.207e-05,2]
[420656664,1776436234198,-363.0,8.211e-05,2]
[420656665,1776436234208,-150.0,8.216e-05,2]
[420656666,1776436234218,-250.96,8.219e-05,2]
[420656667,1776436234228,-2000.0,8.219e-05,2]
[420656668,1776436234238,-150.0,8.22e-05,2]
[420656669,1776436234248,-150.0,8.222e-05,2]
[420656670,1776436234258,-150.0,8.226e-05,2]
[420656671,1776436234268,-150.0,8.226e-05,2]
[420656672,1776436234278,-200.0,8.228e-05,2]
[420656673,1776436234288,-150.0,8.237e-05,2]
[420656674,1776436234298,-150.0,8.237e-05,2]
[420656675,1776436234308,-150.0,8.237e-05,2]
[420656676,1776436234318,-150.0,8.246e-05,2]
[420656677,1776436234328,-150.0,8.259e-05,2]
[420656678,1776436234338,-150.0,8.267e-05,2]
[420656679,1776436234347,-119.3286561,8.267e-05,2]
[420656680,1776436234360,-30.6713439,8.267e-05,2]
[420656681,1776436234370,-224.83870038,8.274e-05,2]
[420656682,1776436234408,-533.1592,8.274e-05,2]
[420656683,1776436234420,-5776.05209962,8.274e-05,2]
[420656684,1776436234430,-1855.0,8.281e-05,2]
[420656685,1776436234439,-150.0,8.295e-05,2]
[420656686,1776436234449,-150.0,8.299e-05,2]
[420656687,1776436234458,-150.0,8.302e-05,2]
[420656688,1776436234468,-150.0,8.312e-05,2]
[420656689,1776436234478,-150.0,8.312e-05,2]
[420656690,1776436234487,-150.0,8.312e-05,2]
[420656691,1776436234497,-150.0,8.327e-05,2]
[420656692,1776436234506,-500.0,8.327e-05,2]
[420656693,1776436234516,-150.0,8.344e-05,2]
[420656694,1776436234526,-150.0,8.352e-05,2]
[420656695,1776436234536,-150.0,8.357e-05,2]
[420656696,1776436234545,-533.89,8.362e-05,2]
[420656697,1776436234554,-150.0,8.364e-05,2]
[420656698,1776436234564,-150.0,8.387e-05,2]
[420656699,1776436234573,-150.0,8.387e-05,2]
[420656700,1776436234582,-150.0,8.387e-05,2]
[420656701,1776436234591,-150.0,8.387e-05,2]
[420656702,1776436234600,-150.0,8.387e-05,2]
[420656703,1776436234610,-150.0,8.387e-05,2]
[420656704,1776436234619,-150.0,8.402e-05,2]
[420656705,1776436234629,-150.0,8.405e-05,2]
[420656706,1776436234638,-928.77157746,8.421e-05,2]
[420656707,1776436234647,-174.61919141,8.424e-05,2]
[420656708,1776436234657,-1600.0,8.428e-05,2]
[420656709,1776436234666,-24999.99,8.429e-05,2]
[420656710,1776436234675,-1573.18,8.429e-05,2]
[420656711,1776436234687,-1790.886,8.43e-05,2]
[420656712,1776436234697,-150.99,8.43e-05,2]
[420656713,1776436234706,-299.99,8.43e-05,2]
[420656714,1776436234715,-8554.98830391,8.43e-05,2]
[420656715,1776436234729,-446.80169609,8.43e-05,2]
[420656716,1776436234739,-150.0,8.43e-05,2]
[420656717,1776436234748,-198.99801,8.431e-05,2]
[420656718,1776436234758,-150.0,8.433e-05,2]
[420656719,1776436234767,-150.0,8.447e-05,2]
[420656720,1776436234776,-150.0,8.447e-05,2]
[420656721,1776436234787,-150.0,8.458e-05,2]
[420656722,1776436234796,-150.0,8.462e-05,2]
[420656723,1776436234806,-150.0,8.462e-05,2]
[420656724,1776436234815,-150.0,8.473e-05,2]
[420656725,1776436234824,-150.0,8.492e-05,2]
[420656726,1776436234834,-150.0,8.502e-05,2]
[420656727,1776436234843,-250.0,8.503e-05,2]
[420656728,1776436234852,-150.0,8.507e-05,2]
[420656729,1776436234862,-150.0,8.511e-05,2]
[420656730,1776436234871,-150.0,8.516e-05,2]
[420656731,1776436234882,-150.0,8.52e-05,2]
[420656732,1776436234891,-9120.725312,8.526e-05,2]
[420656733,1776436234901,-184.809357,8.526e-05,2]
[420656734,1776436234910,-1321.90784684,8.526e-05,2]
[420656735,1776436234922,-2272.70762816,8.526e-05,2]
[420656736,1776436234931,-2760.197762,8.526e-05,2]
[420656737,1776436234941,-2366.278838,8.526e-05,2]
[420656738,1776436234950,-150.0,8.537e-05,2]
[420656739,1776436234959,-150.0,8.537e-05,2]
[420656740,1776436234969,-150.0,8.537e-05,2]
[420656741,1776436234978,-150.0,8.537e-05,2]
[420656742,1776436234987,-150.0,8.537e-05,2]
[420656743,1776436234996,-150.0,8.558e-05,2]
[420656744,1776436235005,-150.0,8.563e-05,2]
[420656745,1776436235015,-150.0,8.567e-05,2]
[420656746,1776436235024,-152.26,8.571e-05,2]
[420656747,1776436235033,-150.0,8.572e-05,2]
[420656748,1776436235042,-150.0,8.582e-05,2]
[420656749,1776436235051,-194.8,8.593e-05,2]
[420656750,1776436235061,-497.25119195,8.6e-05,3]
[420656751,1776436235073,-502.74880805,8.6e-05,3]
[420656752,1776436235082,-150.0,8.601e-05,2]
[420656753,1776436235092,-500.0,8.601e-05,2]
[420656754,1776436235102,-150.0,8.612e-05,2]
[420656755,1776436235112,-150.0,8.612e-05,2]
[420656757,1776436235124,-5000.0,8.613e-05,2]
[420656758,1776436235134,-5000.0,8.613e-05,2]
[420656759,1776436235144,-5119.34515681,8.613e-05,2]
[420656760,1776436235154,-193.32968902,8.613e-05,2]
[420656761,1776436235164,-150.0,8.616e-05,2]
[420656762,1776436235173,-954.0,8.617e-05,3]
[420656763,1776436235183,-150.0,8.627e-05,2]
[420656764,1776436235192,-150.0,8.627e-05,2]
[420656765,1776436235201,-533.89,8.636e-05,2]
[420656766,1776436235210,-150.0,8.641e-05,2]
[420656767,1776436235220,-150.0,8.644e-05,2]
[420656768,1776436235230,-150.0,8.669e-05,2]
[420656769,1776436235239,-150.0,8.672e-05,2]